[Event "ESCC-65 2022"]
[Site "Lublin"]
[Date "2022.07.12"]
[Round "8.7"]
[White "Praszak, Michal"]
[Black "Stokes, Michael"]
[Result "1-0"]
[ECO "D58"]
[WhiteElo "2048"]
[BlackElo "2024"]
[Annotator "ChessBase"]
[PlyCount "53"]
[EventDate "2022.07.05"]
[EventType "swiss"]
[EventCountry "POL"]
[SourceTitle "playchess.com"]
[Source "ChessBase"]
[SourceQuality "1"]
[TimeControl "40/5400+30:1800+30"]

1. d4 {[%emt 0:00:04]} d5 {[%emt 0:00:04]} 2. c4 {[%emt 0:00:12]} e6 {[%emt 0:00:03]} 3. Nf3 {[%emt 0:00:21]} Nf6 {[%emt 0:00:05]} 4. Nc3 {[%emt 0:00:13]} Be7 {[%emt 0:00:04]} 5. Bg5 {[%emt 0:00:18]} h6 {[%emt 0:00:09]} 6. Bh4 {[%emt 0:00:07]} O-O {[%emt 0:00:07]} 7. e3 {[%emt 0:00:11]} b6 {[%emt 0:00:12]} 8. Qb3 {[%emt 0:00:33]} Bb7 {[%emt 0:16:04]} 9. Bxf6 {[%emt 0:00:16]} Bxf6 {[%emt 0:00:13]} 10. cxd5 {[%emt 0:00:09]} exd5 {[%emt 0:00:39]} 11. Rd1 {[%emt 0:00:12]} Re8 {[%emt 0:01:17]} 12. Be2 {[%emt 0:00:08]} c6 {[%emt 0:01:25]} 13. O-O {[%emt 0:00:16]} Nd7 {[%emt 0:00:17]} 14. Rfe1 {[%emt 0:00:11]} Qe7 {[%emt 0:03:40]} 15. Bd3 {[%emt 0:00:22]} a5 {[%emt 0:04:02]} 16. a3 {[%emt 0:02:41]} Qe6 {[%emt 0:13:06]} 17. e4 {[%emt 0:04:55]} c5 {[%emt 0:09:45]} 18. Nxd5 {[%emt 0:05:25]} Bxd5 {[%emt 0:02:31]} 19. exd5 {[%emt 0:01:11]} Qg4 {[%emt 0:00:54]} 20. Rxe8+ {[%emt 0:04:05]} Rxe8 {[%emt 0:00:07]} 21. h3 {[%emt 0:00:14]} Qh5 22. Bb5 {[%emt 0:00:38]} Rd8 {[%emt 0:06:03]} 23. Bxd7 {[%emt 0:03:13]} Rxd7 {[%emt 0:00:05]} 24. dxc5 {[%emt 0:02:39]} bxc5 {[%emt 0:00:15]} 25. Qb5 {[%emt 0:01:15]} Rxd5 {[%emt 0:02:57]} 26. Qe8+ {[%emt 0:00:20]} Kh7 {[%emt 0:00:05]} 27. Qe4+ {[%emt 0:00:22]} 1-0

[Event "ESCC-65 2022"]
[Site "Lublin"]
[Date "2022.07.12"]
[Round "8.8"]
[White "Dobosz, Henryk"]
[Black "Neumann, Joachim"]
[Result "1/2-1/2"]
[ECO "E14"]
[WhiteElo "2354"]
[BlackElo "2082"]
[Annotator "ChessBase"]
[PlyCount "32"]
[EventDate "2022.07.05"]
[EventType "swiss"]
[EventCountry "POL"]
[SourceTitle "playchess.com"]
[Source "ChessBase"]
[SourceQuality "1"]
[TimeControl "40/5400+30:1800+30"]

1. Nf3 {[%emt 0:01:20]} Nf6 {[%emt 0:00:12]} 2. c4 {[%emt 0:01:29]} e6 {[%emt 0:02:05]} 3. d4 {[%emt 0:03:48]} b6 {[%emt 0:00:42]} 4. e3 {[%emt 0:01:01]} Bb7 {[%emt 0:00:44]} 5. Bd3 {[%emt 0:00:13]} d5 {[%emt 0:03:31]} 6. O-O {[%emt 0:00:24]} Bd6 {[%emt 0:01:02]} 7. Nc3 {[%emt 0:06:21]} a6 {[%emt 0:08:44]} 8. Qe2 {[%emt 0:13:22]} Ne4 {[%emt 0:23:50]} 9. Ne5 {[%emt 0:08:11]} Nd7 {[%emt 0:02:07]} 10. Nxd7 {[%emt 0:02:32]} Qxd7 {[%emt 0:00:25]} 11. f3 {[%emt 0:00:29]} Nxc3 {[%emt 0:09:06]} 12. bxc3 {[%emt 0:00:09]} O-O {[%emt 0:00:15]} 13. Rb1 {[%emt 0:09:25]} dxc4 {[%emt 0:03:44]} 14. Bxc4 {[%emt 0:00:08]} b5 {[%emt 0:00:16]} 15. Bd3 {[%emt 0:04:05]} c5 {[%emt 0:02:46]} 16. e4 {[%emt 0:13:24]} cxd4 {[%emt 0:02:36]} 1/2-1/2

[Event "ESCC-65 2022"]
[Site "Lublin"]
[Date "2022.07.12"]
[Round "8.9"]
[White "Syre, Christian"]
[Black "Gasik, Piotr"]
[Result "1-0"]
[ECO "A88"]
[WhiteElo "2243"]
[BlackElo "1990"]
[Annotator "ChessBase"]
[PlyCount "96"]
[EventDate "2022.07.05"]
[EventType "swiss"]
[EventCountry "POL"]
[SourceTitle "playchess.com"]
[Source "ChessBase"]
[SourceQuality "1"]
[TimeControl "40/5400+30:1800+30"]

1. c4 {[%emt 0:00:25]} d6 {[%emt 0:03:33]} 2. Nc3 {[%emt 0:03:59]} g6 {[%emt 0:01:22]} 3. g3 {[%emt 0:01:17]} f5 {[%emt 0:01:12]} 4. Bg2 {[%emt 0:00:20]} Nf6 {[%emt 0:00:12]} 5. d4 {[%emt 0:03:10]} Bg7 {[%emt 0:00:09]} 6. Nf3 {[%emt 0:00:05]} O-O {[%emt 0:00:08]} 7. O-O {[%emt 0:00:03]} c6 {[%emt 0:00:05]} 8. d5 {[%emt 0:02:32]} Bd7 {[%emt 0:00:06]} 9. Qb3 {[%emt 0:02:53]} Qc8 {[%emt 0:08:00]} 10. c5 {[%emt 0:08:36]} cxd5 {[%emt 0:00:53]} 11. cxd6 {[%emt 0:01:01]} e6 {[%emt 0:00:09]} 12. Bf4 {[%emt 0:04:32]} Na6 {[%emt 0:04:53]} 13. Rac1 {[%emt 0:00:20]} Nc5 {[%emt 0:23:35]} 14. Qa3 {[%emt 0:14:38]} b6 {[%emt 0:00:28]} 15. b4 {[%emt 0:00:27]} Qa6 {[%emt 0:00:47]} 16. Qxa6 {[%emt 0:00:23]} Nxa6 {[%emt 0:00:23]} 17. a3 {[%emt 0:01:21]} Ne4 {[%emt 0:06:17]} 18. Be5 {[%emt 0:01:37]} Rfd8 {[%emt 0:01:23]} 19. Bxg7 {[%emt 0:00:20]} Kxg7 {[%emt 0:00:22]} 20. Nxe4 {[%emt 0:01:38]} fxe4 {[%emt 0:00:39]} 21. Nd4 {[%emt 0:07:47]} Rac8 {[%emt 0:02:17]} 22. Bh3 {[%emt 0:06:13]} Kf6 {[%emt 0:04:09]} 23. f4 {[%emt 0:01:20]} Kf7 {[%emt 0:04:26]} 24. e3 {[%emt 0:12:07]} Kf6 {[%emt 0:00:56]} 25. Bg4 {[%emt 0:01:12]} Rxc1 {[%emt 0:09:06]} 26. Rxc1 {[%emt 0:00:05]} e5 {[%emt 0:00:08]} 27. fxe5+ {[%emt 0:02:18]} Kxe5 {[%emt 0:00:12]} 28. Be2 {[%emt 0:09:12]} Nb8 {[%emt 0:01:52]} 29. Rc7 {[%emt 0:00:06]} a6 {[%emt 0:02:42]} 30. Rb7 {[%emt 0:01:27]} Nc6 {[%emt 0:08:54]} 31. Nxc6+ {[%emt 0:07:14]} Bxc6 {[%emt 0:00:25]} 32. Rxb6 {[%emt 0:00:01]} Rxd6 {[%emt 0:00:23]} 33. Bxa6 {[%emt 0:01:09]} Bd7 {[%emt 0:05:24]} 34. Rxd6 {[%emt 0:00:15]} Kxd6 {[%emt 0:00:09]} 35. Kf2 {[%emt 0:00:28]} Ke5 {[%emt 0:02:55]} 36. b5 {[%emt 0:04:04]} Kd6 {[%emt 0:00:13]} 37. Ke2 {[%emt 0:01:05]} Kc5 {[%emt 0:00:21]} 38. Kd2 {[%emt 0:00:05]} Bg4 {[%emt 0:02:23]} 39. a4 {[%emt 0:00:26]} Bh3 {[%emt 0:00:59]} 40. Kc3 {[%emt 0:00:00]} Bf1 {[%emt 0:00:00]} 41. Bc8 {[%emt 0:00:27]} Be2 {[%emt 0:06:27]} 42. Bd7 {[%emt 0:03:40]} Bd1 {[%emt 0:01:13]} 43. a5 {[%emt 0:00:40]} Be2 {[%emt 0:00:15]} 44. a6 {[%emt 0:03:28]} Kb6 {[%emt 0:00:07]} 45. Kd4 {[%emt 0:00:10]} Bc4 {[%emt 0:00:28]} 46. Bc6 {[%emt 0:01:10]} g5 {[%emt 0:01:16]} 47. Ke5 {[%emt 0:02:53]} h6 {[%emt 0:00:41]} 48. Kd4 {[%emt 0:04:00]} Ka7 {[%emt 0:08:16]} 1-0

[Event "ESCC-65 2022"]
[Site "Lublin"]
[Date "2022.07.12"]
[Round "8.10"]
[White "Hewson, Brian W R"]
[Black "Olszowski, Andrzej"]
[Result "1-0"]
[ECO "D45"]
[WhiteElo "2049"]
[BlackElo "1600"]
[Annotator "ChessBase"]
[PlyCount "105"]
[EventDate "2022.07.05"]
[EventType "swiss"]
[EventCountry "POL"]
[SourceTitle "playchess.com"]
[Source "ChessBase"]
[SourceQuality "1"]
[TimeControl "40/5400+30:1800+30"]

1. d4 {[%emt 0:00:11]} d5 {[%emt 0:00:00]} 2. c4 {[%emt 0:00:17]} c6 {[%emt 0:00:00]} 3. Nf3 {[%emt 0:00:10]} Nf6 {[%emt 0:00:00]} 4. Nc3 {[%emt 0:00:20]} e6 {[%emt 0:00:11]} 5. e3 {[%emt 0:00:08]} a6 {[%emt 0:03:20]} 6. Bd3 {[%emt 0:06:09]} b5 {[%emt 0:02:23]} 7. cxb5 {[%emt 0:00:12]} cxb5 {[%emt 0:00:11]} 8. O-O {[%emt 0:00:31]} Nbd7 {[%emt 0:01:51]} 9. a3 {[%emt 0:02:21]} Bb7 {[%emt 0:00:03]} 10. Bd2 {[%emt 0:02:09]} Bd6 {[%emt 0:00:21]} 11. Rc1 {[%emt 0:00:33]} O-O {[%emt 0:02:35]} 12. h3 {[%emt 0:02:18]} Rc8 {[%emt 0:01:46]} 13. Qe2 {[%emt 0:01:38]} Ne4 {[%emt 0:03:36]} 14. Na2 {[%emt 0:01:38]} Nb6 {[%emt 0:04:41]} 15. Bb4 {[%emt 0:00:38]} Qd7 {[%emt 0:10:10]} 16. Nd2 {[%emt 0:05:14]} Rfe8 {[%emt 0:11:23]} 17. Nb3 {[%emt 0:19:50]} Nc4 {[%emt 0:03:28]} 18. Bxe4 {[%emt 0:01:04]} dxe4 {[%emt 0:03:37]} 19. Bxd6 {[%emt 0:01:09]} Qxd6 {[%emt 0:01:42]} 20. Nc5 {[%emt 0:01:31]} Bd5 {[%emt 0:02:42]} 21. Rfd1 {[%emt 0:17:19]} f5 {[%emt 0:09:27]} 22. Nc3 {[%emt 0:05:01]} Ra8 {[%emt 0:16:25]} 23. Ra1 {[%emt 0:05:01]} Nb6 {[%emt 0:03:39]} 24. Nxd5 {[%emt 0:05:33]} exd5 {[%emt 0:06:05]} 25. g3 {[%emt 0:03:42]} Rf8 {[%emt 0:04:19]} 26. b4 {[%emt 0:02:50]} Nc4 {[%emt 0:00:56]} 27. a4 {[%emt 0:01:13]} Qg6 {[%emt 0:01:53]} 28. Kh2 {[%emt 0:02:51]} Qd6 {[%emt 0:01:11]} 29. Ra2 {[%emt 0:01:11]} Qc6 {[%emt 0:01:59]} 30. Rda1 {[%emt 0:02:46]} g6 {[%emt 0:00:13]} 31. axb5 {[%emt 0:02:04]} axb5 {[%emt 0:00:03]} 32. Ra6 {[%emt 0:00:33]} Rxa6 {[%emt 0:02:02]} 33. Rxa6 {[%emt 0:00:05]} Qc8 {[%emt 0:00:45]} 34. Qa2 {[%emt 0:01:09]} Re8 {[%emt 0:00:25]} 35. Ra7 {[%emt 0:01:01]} Kh8 {[%emt 0:01:40]} 36. Kg2 {[%emt 0:00:42]} g5 {[%emt 0:00:59]} 37. Nd7 {[%emt 0:03:26]} Qc6 {[%emt 0:00:51]} 38. Qa6 {[%emt 0:01:38]} Qxa6 {[%emt 0:00:31]} 39. Rxa6 {[%emt 0:00:05]} Rd8 {[%emt 0:00:00]} 40. Ra7 {[%emt 0:00:00]} Kg7 {[%emt 0:00:00]} 41. Ne5+ {[%emt 0:07:50]} Kg8 {[%emt 0:04:26]} 42. Nf7 {[%emt 0:00:47]} Rc8 {[%emt 0:04:25]} 43. Nh6+ {[%emt 0:00:40]} Kh8 {[%emt 0:01:46]} 44. Nxf5 {[%emt 0:00:18]} Nd2 {[%emt 0:03:05]} 45. g4 {[%emt 0:03:04]} h5 {[%emt 0:00:45]} 46. gxh5 {[%emt 0:02:53]} Nf3 {[%emt 0:02:02]} 47. Kg3 {[%emt 0:05:31]} Rc1 {[%emt 0:00:25]} 48. Kg4 {[%emt 0:00:09]} Rc2 {[%emt 0:05:27]} 49. h6 {[%emt 0:02:26]} Rxf2 {[%emt 0:02:35]} 50. Kh5 {[%emt 0:02:14]} Nh4 {[%emt 0:06:16]} 51. Ne7 {[%emt 0:09:27]} g4 {[%emt 0:06:01]} 52. Kxh4 {[%emt 0:01:17]} gxh3 {[%emt 0:00:03]} 53. Ng6+ {[%emt 0:00:16]} 1-0

[Event "ESCC-65 2022"]
[Site "Lublin"]
[Date "2022.07.12"]
[Round "8.11"]
[White "Wagner-Michel, Annett"]
[Black "Gromowski, Stanislaw"]
[Result "1-0"]
[ECO "B54"]
[WhiteElo "2056"]
[BlackElo "1613"]
[Annotator "ChessBase"]
[PlyCount "123"]
[EventDate "2022.07.05"]
[EventType "swiss"]
[EventCountry "POL"]
[SourceTitle "playchess.com"]
[Source "ChessBase"]
[SourceQuality "1"]
[TimeControl "40/5400+30:1800+30"]

1. e4 {[%emt 0:00:04]} c5 {[%emt 0:00:37]} 2. Nf3 {[%emt 0:00:08]} d6 {[%emt 0:00:19]} 3. d4 {[%emt 0:00:23]} cxd4 {[%emt 0:00:09]} 4. Nxd4 {[%emt 0:00:03]} a6 {[%emt 0:00:36]} 5. c4 {[%emt 0:00:54]} Nf6 {[%emt 0:00:17]} 6. Nc3 {[%emt 0:00:16]} e6 {[%emt 0:00:44]} 7. Be2 {[%emt 0:00:33]} Be7 {[%emt 0:00:21]} 8. O-O {[%emt 0:00:52]} O-O {[%emt 0:00:12]} 9. Be3 {[%emt 0:01:23]} Nbd7 {[%emt 0:00:39]} 10. Kh1 {[%emt 0:02:18]} Re8 {[%emt 0:02:27]} 11. Rc1 {[%emt 0:02:32]} Nc5 {[%emt 0:01:47]} 12. f3 {[%emt 0:04:08]} h6 {[%emt 0:01:15]} 13. b4 {[%emt 0:03:27]} Ncd7 {[%emt 0:00:17]} 14. a3 {[%emt 0:01:23]} Bf8 {[%emt 0:00:30]} 15. Qd2 {[%emt 0:02:12]} Ne5 {[%emt 0:01:25]} 16. f4 {[%emt 0:05:07]} Ng6 {[%emt 0:02:43]} 17. Nb3 {[%emt 0:01:35]} b6 {[%emt 0:01:37]} 18. Bf3 {[%emt 0:15:14]} Rb8 {[%emt 0:00:29]} 19. Qf2 {[%emt 0:00:50]} Bd7 {[%emt 0:01:49]} 20. g4 {[%emt 0:17:12]} Nh7 {[%emt 0:08:05]} 21. Nd4 {[%emt 0:16:30]} e5 {[%emt 0:08:20]} 22. Nde2 {[%emt 0:02:59]} Nh4 {[%emt 0:05:58]} 23. Nd5 {[%emt 0:01:45]} Nxf3 {[%emt 0:02:56]} 24. Qxf3 {[%emt 0:00:03]} exf4 {[%emt 0:02:01]} 25. Bxf4 {[%emt 0:01:36]} Nf6 {[%emt 0:01:10]} 26. Be3 {[%emt 0:07:46]} Be6 {[%emt 0:05:29]} 27. Nd4 {[%emt 0:02:40]} Qd7 {[%emt 0:06:17]} 28. Nxf6+ {[%emt 0:02:03]} gxf6 {[%emt 0:00:18]} 29. Nf5 {[%emt 0:00:45]} b5 {[%emt 0:03:58]} 30. Nxh6+ {[%emt 0:02:05]} Bxh6 {[%emt 0:02:21]} 31. Bxh6 {[%emt 0:00:03]} Qe7 {[%emt 0:01:02]} 32. c5 {[%emt 0:00:15]} dxc5 {[%emt 0:03:00]} 33. Rxc5 {[%emt 0:00:12]} Bc4 {[%emt 0:00:22]} 34. Re1 {[%emt 0:00:39]} Rbd8 {[%emt 0:00:52]} 35. g5 {[%emt 0:00:25]} Rd6 {[%emt 0:03:00]} 36. gxf6 {[%emt 0:02:38]} Rxf6 {[%emt 0:00:24]} 37. Rg5+ {[%emt 0:00:30]} Kh7 {[%emt 0:01:58]} 38. Qc3 {[%emt 0:01:56]} Rg6 {[%emt 0:10:39]} 39. Rxg6 {[%emt 0:01:00]} fxg6 {[%emt 0:00:12]} 40. Bd2 {[%emt 0:00:00]} Qh4 {[%emt 0:00:00]} 41. Qg3 {[%emt 0:12:42]} Qxg3 {[%emt 0:06:31]} 42. hxg3 {[%emt 0:00:02]} Kg7 {[%emt 0:00:36]} 43. Kg2 {[%emt 0:00:33]} Kf7 {[%emt 0:00:15]} 44. Bc3 {[%emt 0:02:47]} Rd8 {[%emt 0:00:22]} 45. Re3 {[%emt 0:00:34]} Rc8 {[%emt 0:05:52]} 46. Kf3 {[%emt 0:01:00]} g5 {[%emt 0:05:19]} 47. e5 {[%emt 0:05:24]} Be6 {[%emt 0:00:29]} 48. Bd2 {[%emt 0:05:56]} Rd8 {[%emt 0:03:16]} 49. Bc3 {[%emt 0:01:37]} Rc8 {[%emt 0:00:42]} 50. Bd2 {[%emt 0:00:26]} Rc2 {[%emt 0:01:06]} 51. Bc3 {[%emt 0:01:39]} Kg6 {[%emt 0:02:26]} 52. Ke4 {[%emt 0:00:42]} Ra2 {[%emt 0:01:01]} 53. Bd4 {[%emt 0:00:32]} Rd2 {[%emt 0:00:40]} 54. Rc3 {[%emt 0:01:12]} Bc4 {[%emt 0:01:09]} 55. Rf3 {[%emt 0:00:49]} Re2+ {[%emt 0:02:35]} 56. Be3 {[%emt 0:00:18]} Rg2 {[%emt 0:01:36]} 57. Rf6+ {[%emt 0:00:27]} Kh5 {[%emt 0:00:50]} 58. e6 {[%emt 0:00:31]} Rxg3 {[%emt 0:01:25]} 59. e7 {[%emt 0:00:29]} Bd5+ {[%emt 0:01:46]} 60. Kxd5 {[%emt 0:00:33]} Rxe3 {[%emt 0:00:11]} 61. Re6 {[%emt 0:00:02]} Rg3 62. Kd4 1-0

[Event "ESCC-65 2022"]
[Site "Lublin"]
[Date "2022.07.12"]
[Round "8.12"]
[White "Chubar, Vladimir"]
[Black "Sciupokas, Arunas"]
[Result "1/2-1/2"]
[ECO "A40"]
[WhiteElo "1809"]
[BlackElo "1960"]
[Annotator "ChessBase"]
[PlyCount "91"]
[EventDate "2022.07.05"]
[EventType "swiss"]
[EventCountry "POL"]
[SourceTitle "playchess.com"]
[Source "ChessBase"]
[SourceQuality "1"]
[TimeControl "40/5400+30:1800+30"]

1. d4 {[%emt 0:00:01]} Nc6 {[%emt 0:00:09]} 2. Nf3 {[%emt 0:01:03]} d5 {[%emt 0:00:21]} 3. Bf4 {[%emt 0:00:24]} Nf6 {[%emt 0:00:49]} 4. e3 {[%emt 0:02:29]} g6 {[%emt 0:05:21]} 5. c4 {[%emt 0:01:03]} Bg7 {[%emt 0:04:59]} 6. Nc3 {[%emt 0:00:41]} O-O {[%emt 0:17:04]} 7. h3 {[%emt 0:03:43]} Bf5 {[%emt 0:04:24]} 8. g4 {[%emt 0:04:33]} Be4 {[%emt 0:05:44]} 9. Nxe4 {[%emt 0:02:50]} Nxe4 {[%emt 0:07:27]} 10. Qb3 {[%emt 0:02:38]} Na5 {[%emt 0:10:54]} 11. Qc2 {[%emt 0:00:50]} Nf6 {[%emt 0:01:28]} 12. c5 {[%emt 0:02:51]} Nc6 {[%emt 0:04:52]} 13. Bb5 {[%emt 0:01:44]} Nd7 {[%emt 0:02:54]} 14. Bxc6 {[%emt 0:02:39]} bxc6 {[%emt 0:00:02]} 15. Qa4 {[%emt 0:00:42]} e5 {[%emt 0:01:20]} 16. Bxe5 {[%emt 0:01:44]} Nxe5 {[%emt 0:03:56]} 17. dxe5 {[%emt 0:00:27]} f6 {[%emt 0:03:23]} 18. e6 {[%emt 0:05:01]} f5 {[%emt 0:04:15]} 19. Nd4 {[%emt 0:06:07]} Bxd4 {[%emt 0:02:32]} 20. Qxd4 {[%emt 0:03:17]} Qf6 {[%emt 0:01:15]} 21. O-O-O {[%emt 0:03:55]} Qxd4 {[%emt 0:03:16]} 22. Rxd4 {[%emt 0:04:20]} fxg4 {[%emt 0:01:13]} 23. hxg4 {[%emt 0:00:07]} Rxf2 {[%emt 0:01:58]} 24. Rf4 {[%emt 0:01:40]} Rf8 {[%emt 0:05:14]} 25. Ra4 {[%emt 0:02:40]} Rf1+ {[%emt 0:03:21]} 26. Rxf1 {[%emt 0:02:44]} Rxf1+ {[%emt 0:00:01]} 27. Kc2 {[%emt 0:00:26]} Rf6 {[%emt 0:00:21]} 28. Rxa7 {[%emt 0:01:02]} Rxe6 {[%emt 0:00:09]} 29. Rxc7 {[%emt 0:00:07]} h5 {[%emt 0:00:36]} 30. gxh5 {[%emt 0:00:47]} gxh5 {[%emt 0:00:06]} 31. e4 {[%emt 0:06:25]} dxe4 {[%emt 0:01:37]} 32. Rd7 {[%emt 0:00:38]} e3 {[%emt 0:01:43]} 33. Kd1 {[%emt 0:00:06]} Re5 {[%emt 0:01:25]} 34. b4 {[%emt 0:00:05]} h4 {[%emt 0:00:42]} 35. Ke2 {[%emt 0:00:14]} h3 {[%emt 0:01:00]} 36. Rd1 {[%emt 0:00:06]} Rd5 {[%emt 0:01:51]} 37. Rg1+ {[%emt 0:01:45]} Kf7 {[%emt 0:00:32]} 38. Kxe3 {[%emt 0:00:12]} h2 {[%emt 0:00:38]} 39. Rh1 {[%emt 0:00:13]} Rh5 {[%emt 0:00:08]} 40. Kd3 {[%emt 0:00:00]} Ke6 {[%emt 0:00:00]} 41. Kc4 {[%emt 0:05:10]} Rh3 42. a4 {[%emt 0:04:23]} Rh4+ {[%emt 0:05:53]} 43. Kc3 {[%emt 0:00:08]} Rh3+ {[%emt 0:00:22]} 44. Kb2 {[%emt 0:00:07]} Kd5 {[%emt 0:01:26]} 45. Kc2 {[%emt 0:17:01]} Kc4 {[%emt 0:01:11]} 46. b5 1/2-1/2

[Event "ESCC-65 2022"]
[Site "Lublin"]
[Date "2022.07.12"]
[Round "8.13"]
[White "Scowen, Roger S"]
[Black "Sosnowska, Elzbieta"]
[Result "1-0"]
[ECO "B06"]
[WhiteElo "1864"]
[BlackElo "1726"]
[Annotator "NA"]
[PlyCount "57"]
[EventDate "2022.07.05"]
[EventType "swiss"]
[EventCountry "POL"]
[SourceTitle "playchess.com"]
[Source "ChessBase"]
[SourceQuality "1"]
[TimeControl "40/5400+30:1800+30"]

1. e4 {[%emt 0:00:06]} g6 {[%emt 0:00:11]} 2. d4 {[%emt 0:00:23]} c6 {[%emt 0:00:13]} 3. c4 {[%emt 0:00:34]} d5 {[%emt 0:00:46]} 4. cxd5 {[%emt 0:01:48]} cxd5 {[%emt 0:00:16]} 5. e5 {[%emt 0:05:00]} Nc6 {[%emt 0:00:18]} 6. Be3 {[%emt 0:12:09]} h5 {[%emt 0:00:23]} 7. Qd2 {[%emt 0:02:59]} Nh6 {[%emt 0:00:29]} 8. Nf3 {[%emt 0:05:01]} Bg4 {[%emt 0:00:48]} 9. Be2 {[%emt 0:00:42]} Nf5 {[%emt 0:00:11]} 10. Nc3 {[%emt 0:06:50]} Nxe3 {[%emt 0:00:36]} 11. fxe3 {[%emt 0:00:42]} e6 {[%emt 0:00:15]} 12. O-O {[%emt 0:00:58]} Bh6 {[%emt 0:00:31]} 13. Nb5 {[%emt 0:03:24]} O-O {[%emt 0:00:26]} 14. h3 {[%emt 0:03:41]} Bxf3 {[%emt 0:07:58]} 15. Rxf3 {[%emt 0:00:53]} a6 {[%emt 0:13:54]} 16. Nd6 {[%emt 0:07:41]} f6 {[%emt 0:00:47]} 17. Nxb7 {[%emt 0:04:09]} Qb6 {[%emt 0:00:13]} 18. Rg3 {[%emt 0:07:29]} Kh7 {[%emt 0:02:07]} 19. Qd3 {[%emt 0:06:42]} f5 {[%emt 0:01:56]} 20. Nd6 {[%emt 0:02:00]} Qxb2 {[%emt 0:01:36]} 21. Rb1 {[%emt 0:00:35]} Qxa2 {[%emt 0:00:17]} 22. Rb7+ {[%emt 0:00:29]} Bg7 {[%emt 0:00:08]} 23. Bxh5 {[%emt 0:00:48]} Qa1+ {[%emt 0:01:45]} 24. Kh2 {[%emt 0:00:49]} Nxe5 {[%emt 0:00:13]} 25. dxe5 {[%emt 0:05:29]} Qxe5 {[%emt 0:00:10]} 26. Bxg6+ {[%emt 0:01:15]} Kh6 {[%emt 0:01:03]} 27. Nf7+ {[%emt 0:01:02]} Rxf7 {[%emt 0:00:09]} 28. Bxf7 {[%emt 0:00:03]} Qd6 {[%emt 0:02:31]} 29. Qe2 {[%emt 0:02:03]} 1-0

[Event "ESCC-65 2022"]
[Site "Lublin"]
[Date "2022.07.12"]
[Round "8.14"]
[White "Severcan, Sedat Sabri"]
[Black "Berkley, Stephen W"]
[Result "1-0"]
[ECO "D34"]
[WhiteElo "1849"]
[BlackElo "1525"]
[Annotator "NA"]
[PlyCount "141"]
[EventDate "2022.07.05"]
[EventType "swiss"]
[EventCountry "POL"]
[SourceTitle "playchess.com"]
[Source "ChessBase"]
[SourceQuality "1"]
[TimeControl "40/5400+30:1800+30"]

1. d4 {[%emt 0:00:17]} e6 {[%emt 0:00:06]} 2. c4 {[%emt 0:00:08]} Nf6 {[%emt 0:00:06]} 3. Nf3 {[%emt 0:00:04]} c5 {[%emt 0:00:12]} 4. g3 {[%emt 0:03:24]} d5 {[%emt 0:02:31]} 5. cxd5 {[%emt 0:00:46]} exd5 {[%emt 0:00:07]} 6. Bg2 {[%emt 0:00:35]} Nc6 {[%emt 0:00:48]} 7. O-O {[%emt 0:00:26]} Be7 {[%emt 0:01:44]} 8. Nc3 {[%emt 0:01:39]} O-O {[%emt 0:01:58]} 9. Bf4 {[%emt 0:06:43]} Be6 {[%emt 0:10:24]} 10. dxc5 {[%emt 0:02:43]} Bxc5 {[%emt 0:00:13]} 11. Ng5 {[%emt 0:02:07]} h6 {[%emt 0:05:23]} 12. Nxe6 {[%emt 0:02:15]} fxe6 {[%emt 0:01:52]} 13. Rc1 {[%emt 0:03:06]} Be7 {[%emt 0:09:32]} 14. Qb3 {[%emt 0:13:07]} Qb6 {[%emt 0:07:20]} 15. Qc2 {[%emt 0:08:53]} d4 {[%emt 0:27:17]} 16. Na4 {[%emt 0:09:36]} Qb5 {[%emt 0:03:01]} 17. Bh3 {[%emt 0:17:50]} Nd8 {[%emt 0:04:33]} 18. b3 {[%emt 0:08:06]} Qh5 {[%emt 0:01:54]} 19. Bg2 {[%emt 0:02:35]} Nd5 {[%emt 0:07:48]} 20. Bd2 {[%emt 0:00:52]} Nc6 {[%emt 0:03:26]} 21. Qe4 {[%emt 0:05:32]} Qf5 {[%emt 0:02:31]} 22. Qxf5 {[%emt 0:03:59]} Rxf5 {[%emt 0:00:31]} 23. Nc5 {[%emt 0:02:00]} Bxc5 {[%emt 0:00:41]} 24. Rxc5 {[%emt 0:00:13]} Ne3 {[%emt 0:00:48]} 25. Rxf5 {[%emt 0:01:00]} Nxf1 {[%emt 0:00:16]} 26. Rc5 {[%emt 0:01:04]} Nxd2 {[%emt 0:00:18]} 27. Rc1 {[%emt 0:01:25]} e5 {[%emt 0:01:07]} 28. Rd1 {[%emt 0:00:03]} Nxb3 {[%emt 0:00:19]} 29. axb3 {[%emt 0:00:21]} Kf8 {[%emt 0:01:38]} 30. Rc1 {[%emt 0:00:52]} Rc8 {[%emt 0:02:09]} 31. b4 {[%emt 0:00:25]} Re8 {[%emt 0:00:55]} 32. b5 {[%emt 0:00:32]} Na5 {[%emt 0:00:56]} 33. Bd5 {[%emt 0:01:03]} Rd8 {[%emt 0:00:17]} 34. Ba2 {[%emt 0:00:19]} Ke7 {[%emt 0:00:54]} 35. Rc5 {[%emt 0:00:19]} d3 {[%emt 0:00:58]} 36. Rxe5+ {[%emt 0:00:56]} Kf8 {[%emt 0:00:05]} 37. exd3 {[%emt 0:00:09]} Rxd3 {[%emt 0:00:15]} 38. Rf5+ {[%emt 0:00:46]} Ke8 {[%emt 0:00:21]} 39. Bg8 {[%emt 0:00:42]} Rd7 {[%emt 0:01:34]} 40. Kg2 {[%emt 0:00:00]} Ke7 {[%emt 0:00:00]} 41. h4 {[%emt 0:01:21]} b6 {[%emt 0:01:54]} 42. h5 {[%emt 0:12:00]} Kd6 {[%emt 0:00:22]} 43. g4 {[%emt 0:01:17]} Nb7 {[%emt 0:00:30]} 44. f4 {[%emt 0:01:34]} Ke7 {[%emt 0:06:17]} 45. g5 {[%emt 0:05:06]} hxg5 {[%emt 0:07:24]} 46. fxg5 {[%emt 0:03:25]} Rd2+ {[%emt 0:00:29]} 47. Kg3 {[%emt 0:04:05]} Nd6 {[%emt 0:00:18]} 48. Re5+ {[%emt 0:00:36]} Kf8 {[%emt 0:00:56]} 49. Be6 {[%emt 0:02:48]} Rd3+ {[%emt 0:03:01]} 50. Kf2 {[%emt 0:00:22]} Rd2+ {[%emt 0:00:04]} 51. Ke1 {[%emt 0:00:34]} Rh2 {[%emt 0:00:20]} 52. g6 {[%emt 0:00:08]} Rh4 {[%emt 0:00:39]} 53. Bd5 {[%emt 0:00:55]} Ne8 {[%emt 0:01:36]} 54. Bc6 {[%emt 0:01:08]} Nf6 {[%emt 0:00:23]} 55. Bf3 {[%emt 0:00:32]} Rf4 {[%emt 0:03:11]} 56. Ke2 {[%emt 0:00:27]} Rb4 {[%emt 0:01:10]} 57. Ke3 {[%emt 0:00:33]} Rb3+ {[%emt 0:01:43]} 58. Kf4 {[%emt 0:00:56]} Rb4+ {[%emt 0:00:42]} 59. Kf5 {[%emt 0:00:46]} Rh4 {[%emt 0:03:01]} 60. Ke6 {[%emt 0:00:07]} Rf4 {[%emt 0:01:35]} 61. Be2 {[%emt 0:01:53]} Rd4 {[%emt 0:00:50]} 62. h6 {[%emt 0:00:36]} Rh4 {[%emt 0:00:43]} 63. h7 {[%emt 0:00:16]} Nxh7 64. gxh7 Rxh7 {[%emt 0:04:05]} 65. Rf5+ {[%emt 0:00:46]} Ke8 {[%emt 0:00:10]} 66. Bh5+ {[%emt 0:00:32]} Kd8 {[%emt 0:00:35]} 67. Rf8+ {[%emt 0:00:15]} Kc7 {[%emt 0:00:11]} 68. Rf7+ {[%emt 0:00:03]} Kd8 {[%emt 0:00:22]} 69. Bg6 {[%emt 0:00:25]} Rh2 70. Rxg7 {[%emt 0:00:17]} Rb2 {[%emt 0:01:19]} 71. Kd6 {[%emt 0:00:18]} 1-0